bitfinex-derivatives/quotes_SOLF0:USTF0_20250310
["timestamp","ask_amount","ask_price","bid_price","bid_amount"]
[1741623230334,332.28210419,121.33,121.23,41.66007]
[1741623230536,8.2478,121.28,121.23,41.66]
[1741623231025,332.28210419,121.33,121.23,41.66]
[1741623231428,0.05418806,121.29,121.27,0.05851734]
[1741623231930,8.2476,121.28,121.27,0.05851734]
[1741623232830,8.2476,121.28,121.27,1.734e-05]
[1741623233228,10.7276,121.28,121.27,1.734e-05]
[1741623233733,8.2476,121.28,121.27,1.734e-05]
[1741623233928,10.7276,121.28,121.2,4.0695]
[1741623234133,57.52690419,121.26,121.17,62.0]
[1741623234328,41.64,121.25,121.17,62.0]
[1741623234534,8.2551,121.17,121.16,4.3815]
[1741623234731,41.64,121.25,121.16,4.3815]
[1741623235132,0.06024874,121.22,121.19,0.05854419]
[1741623235741,8.2531,121.2,121.19,0.05854419]
[1741623240539,0.06024874,121.22,121.19,0.05854419]
[1741623240738,41.68024874,121.22,121.15,4.0576]
[1741623240933,8.2536,121.2,121.17,8.2548]
[1741623241137,8.2536,121.2,121.15,8.1413]
[1741623241138,41.68024874,121.22,121.15,8.1413]
[1741623241334,57.36736412,121.21,121.13,3.994]
[1741623241940,0.06114797,121.18,121.16,0.05406482]
[1741623242138,8.2551,121.17,121.16,0.05406482]
[1741623242455,0.06114797,121.18,121.16,0.05406482]
[1741623242743,8.2551,121.17,121.16,0.05406482]
[1741623243142,0.06114797,121.18,121.16,0.05406482]
[1741623243340,8.31584797,121.18,121.16,0.05406482]
[1741623243542,0.06114797,121.18,121.16,0.05406482]
[1741623243945,57.36736412,121.27,121.17,41.62]
[1741623244244,272.2,121.26,121.18,12.3503]
[1741623244446,272.2,121.26,121.18,4.0962]
[1741623244641,41.62,121.25,121.18,4.0962]
[1741623244844,98.98736412,121.25,121.14,57.36736412]
[1741623245041,8.2536,121.2,121.18,0.05423567]
[1741623245350,0.05368111,121.21,121.18,0.05423567]
[1741623246048,272.2,121.26,121.19,57.36736412]
[1741623246345,272.2,121.26,121.2,4.3639]
[1741623246543,280.4493,121.26,121.23,8.2505]
[1741623246741,41.62,121.28,121.21,45.8743]
[1741623247048,0.05489069,121.26,121.23,0.06230516]
[1741623250249,271.36,121.31,121.24,62.0]
[1741623251547,57.36736412,121.29,121.21,3.9833]
[1741623251740,328.72736412,121.31,121.21,3.9833]
[1741623251939,0.05853753,121.26,121.24,0.06072951]
[1741623252145,370.30736412,121.31,121.24,0.06072951]
[1741623252340,8.2497,121.25,121.24,0.06072951]
[1741623252843,370.30736412,121.31,121.25,8.2497]
[1741623252844,0.06286815,121.26,121.25,8.2497]
[1741623253044,312.94,121.31,121.23,98.94736412]
[1741623253444,312.94,121.31,121.23,41.58]
[1741623253649,370.30736412,121.31,121.21,3.9833]
[1741623253843,8.2512,121.23,121.21,3.9833]
[1741623254247,41.58,121.27,121.21,4.03576582]
[1741623254550,41.58,121.27,121.21,3.9833]
[1741623254849,41.58,121.27,121.23,0.05562706]
[1741623255249,41.58,121.3,121.23,0.05562706]
[1741623255451,8.2489,121.27,121.24,8.2503]
[1741623255648,8.2489,121.27,121.25,0.05263581]
[1741623255950,41.58,121.3,121.25,0.05263581]
[1741623256147,8.249,121.26,121.25,0.05263581]
[1741623256348,41.58,121.3,121.25,0.05263581]
[1741623256549,8.2489,121.27,121.25,0.05263581]
[1741623256750,41.58,121.3,121.25,0.05263581]
[1741623256946,271.36,121.31,121.25,0.05263581]
[1741623256947,312.92,121.31,121.25,0.05263581]
[1741623257647,8.2475,121.29,121.26,8.2486]
[1741623257851,312.92,121.31,121.25,0.05263581]
[1741623258247,8.249,121.26,121.25,0.05263581]
[1741623260241,465.36,121.31,121.25,0.05263581]
[1741623260443,41.56,121.3,121.25,0.05263581]
[1741623260656,271.36,121.31,121.28,8.2472]
[1741623261053,8.247,121.29,121.28,0.0609506]
[1741623261741,271.36,121.31,121.28,0.0609506]
[1741623262855,8.247,121.29,121.28,0.0609506]
[1741623263056,271.36,121.31,121.28,0.0609506]
[1741623263358,8.247,121.29,121.28,0.0609506]
[1741623263552,271.36,121.31,121.28,0.0609506]
[1741623263956,8.247,121.29,121.28,0.0609506]
[1741623265057,271.36,121.31,121.28,8.3082506]
[1741623265253,271.36,121.31,121.28,0.0609506]
[1741623265655,8.247,121.29,121.28,0.0609506]
[1741623265953,271.36,121.31,121.28,0.0609506]
[1741623266152,8.247,121.29,121.28,0.0609506]
[1741623270158,76.80178253,121.3,121.22,16.6066]
[1741623270358,41.54,121.3,121.22,8.3552]
[1741623271359,0.05345467,121.27,121.25,0.05775399]
[1741623272059,8.249,121.26,121.25,0.05775399]
[1741623273152,0.05345467,121.27,121.25,0.05775399]
[1741623273359,271.36,121.31,121.25,35.31953652]
[1741623273658,8.2467,121.3,121.27,8.2479]
[1741623274055,271.36,121.31,121.25,35.26178253]
[1741623274258,41.7007,121.35,121.24,41.52]
[1741623274462,35.26178253,121.32,121.24,41.52]
[1741623274658,8.247,121.29,121.28,0.05639408]
[1741623276362,0.0238382,121.31,121.28,0.05639408]
[1741623276758,8.2463,121.3,121.28,0.05639408]
[1741623277259,0.0238382,121.31,121.28,0.05639408]
[1741623277460,8.247,121.29,121.28,0.05639408]
[1741623280058,41.5238382,121.31,121.28,0.05639408]
[1741623280258,0.0238382,121.31,121.28,0.05639408]
[1741623280461,8.2697382,121.31,121.28,8.30389408]
[1741623280658,8.2697382,121.31,121.28,0.05639408]
[1741623281059,8.2437,121.34,121.28,0.05639408]
[1741623281259,313.62,121.38,121.29,35.26178253]
[1741623281571,35.26178253,121.4,121.29,35.26178253]
[1741623281865,41.5,121.4,121.29,35.26178253]
[1741623282267,32.85088932,121.42,121.33,35.26178253]
[1741623282467,32.85088932,121.42,121.35,35.26178253]
[1741623282666,32.85088932,121.42,121.36,4.0438]
[1741623282860,41.08938932,121.42,121.36,4.0438]
[1741623283063,32.85088932,121.42,121.37,35.26178253]
[1741623283362,89.28395565,121.43,121.41,8.2382]
[1741623283561,82.70205565,121.43,121.39,35.26178253]
[1741623283759,82.70205565,121.43,121.41,35.26178253]
[1741623283962,8.2345,121.48,121.41,35.26178253]
[1741623283963,40.96047232,121.48,121.42,41.5]
[1741623284163,40.96047232,121.48,121.43,97.26178253]
[1741623284568,40.96047232,121.48,121.44,0.05780849]
[1741623285072,8.2355,121.46,121.44,0.05780849]
[1741623285266,40.96047232,121.48,121.44,0.05780849]
[1741623285569,45.7651,121.47,121.37,35.26178253]
[1741623286077,4.2679,121.46,121.37,35.26178253]
[1741623286260,8.2379,121.43,121.37,35.26178253]
[1741623286464,4.2679,121.46,121.37,35.26178253]
[1741623286666,0.05207421,121.41,121.39,0.05351498]
[1741623287167,0.05780849,121.41,121.39,0.05351498]
[1741623287565,0.05780849,121.41,121.4,41.46]
[1741623287769,3.9543,121.5,121.4,103.46]
[1741623287974,3.9543,121.5,121.43,35.26178253]
[1741623288170,4.2095,121.51,121.45,35.26178253]
[1741623288368,12.5871,121.52,121.46,8.2354]
[1741623288869,4.3556,121.52,121.48,0.05435342]
[1741623289066,43.42558253,121.57,121.48,41.51435342]
[1741623289261,4.3556,121.56,121.48,41.51435342]
[1741623289466,4.3556,121.56,121.49,43.49508253]
[1741623289671,4.3556,121.56,121.51,0.05787761]
[1741623289869,271.92,121.59,121.51,0.05787761]
[1741623290072,276.0293,121.59,121.51,0.05787761]
[1741623290269,311.29108253,121.59,121.48,41.46]
[1741623290469,35.26178253,121.57,121.54,3.53e-06]
[1741623290673,35.26178253,121.55,121.54,3.53e-06]
[1741623290872,35.26178253,121.55,121.46,8.1324]
[1741623291172,41.44,121.56,121.47,62.0]
[1741623291769,0.0578,121.53,121.5,0.06322911]
[1741623293276,0.0578,121.53,121.51,35.26178253]
[1741623293578,35.26178253,121.64,121.51,35.26178253]
[1741623293775,8.227,121.59,121.56,35.26178253]
[1741623294076,8.227,121.59,121.57,41.42]
[1741623294281,8.2272,121.59,121.57,41.42]
[1741623294577,263.22260863,121.67,121.57,41.42]
[1741623294771,8.2273,121.58,121.57,41.47823069]
[1741623294966,263.22260863,121.67,121.57,41.42]
[1741623295166,263.22260863,121.67,121.57,103.42]
[1741623295374,41.42,121.66,121.57,103.42]
[1741623295572,41.42,121.66,121.61,0.06023017]
[1741623296075,8.2246,121.62,121.61,0.06023017]
[1741623299877,8.2272,121.59,121.57,62.0]
[1741623300073,41.38,121.65,121.57,62.0]
[1741623300474,56.97830863,121.64,121.55,41.38]
[1741623300980,0.056543,121.61,121.58,0.06220749]
[1741623301979,0.056543,121.61,121.52,41.38]
[1741623302373,56.97830863,121.64,121.52,41.38]
[1741623302569,56.97830863,121.64,121.53,56.97830863]
[1741623302966,56.97830863,121.6,121.5,4.0173]
[1741623303167,56.97830863,121.6,121.46,90.24828617]
[1741623303168,56.97830863,121.54,121.46,90.24828617]
[1741623303374,56.97830863,121.54,121.45,136.3441028]
[1741623303375,56.97830863,121.48,121.45,136.3441028]
[1741623303573,41.36,121.49,121.45,136.3441028]
[1741623303774,56.97830863,121.5,121.49,2.722e-05]
[1741623303775,8.2327,121.5,121.49,2.722e-05]
[1741623303977,235.36,121.53,121.43,88.80018134]
[1741623304177,56.97830863,121.52,121.43,88.80018134]
[1741623304369,235.36,121.53,121.44,56.97830863]
[1741623304568,41.36,121.57,121.48,56.97830863]
[1741623304775,8.2318,121.52,121.48,41.36]
[1741623304972,8.2318,121.52,121.46,56.97830863]
[1741623304973,57.03828429,121.54,121.51,4.622e-05]
[1741623305169,57.03828429,121.54,121.44,102.69270863]
[1741623305170,98.33830863,121.56,121.44,102.69270863]
[1741623305377,8.2307,121.53,121.46,65.21320863]
[1741623305568,98.33830863,121.56,121.44,102.69270863]
[1741623305773,56.97830863,121.52,121.44,45.7144]
[1741623305976,56.97830863,121.5,121.43,88.80018134]
[1741623306273,56.97830863,121.48,121.47,4.484e-05]
[1741623306476,106.57240863,121.48,121.47,4.484e-05]
[1741623306879,0.05596999,121.49,121.47,4.484e-05]
[1741623307075,8.28936999,121.49,121.47,4.484e-05]
[1741623307376,0.05596999,121.49,121.47,4.484e-05]
[1741623307578,194.0,121.57,121.47,4.484e-05]
[1741623307781,369.89830863,121.58,121.47,4.484e-05]
[1741623307976,369.89830863,121.58,121.47,12.1361]
[1741623308180,56.97830863,121.56,121.47,12.1361]
[1741623308479,369.89830863,121.58,121.47,69.11440863]
[1741623308882,0.05486128,121.54,121.51,0.05689201]
[1741623309282,41.41486128,121.54,121.51,0.05689201]
[1741623309582,98.39316991,121.54,121.44,4.2544]
[1741623309778,98.33830863,121.54,121.44,4.2544]
[1741623310174,8.2349,121.47,121.44,4.2544]
[1741623310375,56.97830863,121.52,121.43,8.0097]
[1741623310680,8.2361,121.45,121.44,62.05555711]
[1741623310983,98.33830863,121.5,121.4,41.36]
[1741623311186,57.03711735,121.46,121.43,0.05732698]
[1741623311375,98.39711735,121.46,121.34,61.03880863]
[1741623311580,56.97830863,121.44,121.35,41.36]
[1741623311782,4.0381,121.45,121.34,3.9886]
[1741623311783,56.97830863,121.42,121.34,3.9886]
[1741623311983,98.33830863,121.42,121.34,3.9886]
[1741623312578,0.06072372,121.39,121.37,0.06147411]
[1741623312783,0.06072372,121.39,121.31,45.4205]
[1741623312982,0.06072372,121.39,121.3,4.3855]
[1741623312983,98.33830863,121.38,121.29,4.1756]
[1741623313184,56.97830863,121.36,121.29,4.1756]
[1741623313485,56.97830863,121.36,121.27,45.7455]
[1741623313781,56.97830863,121.34,121.24,106.57440863]
[1741623313987,8.2456,121.31,121.3,0.05294735]
[1741623314381,8.2456,121.31,121.25,62.0]
[1741623314588,0.06307963,121.32,121.25,62.0]
[1741623314782,56.97830863,121.32,121.25,62.0]
[1741623315180,65.22370863,121.32,121.25,62.0]
[1741623315488,0.05574983,121.3,121.27,0.05503878]
[1741623315686,0.05574983,121.3,121.29,446.24866062]
[1741623316300,8.243,121.35,121.29,446.24866062]
[1741623316800,194.0,121.37,121.29,446.24866062]
[1741623317000,56.97830863,121.36,121.29,446.24866062]
[1741623317195,56.97830863,121.34,121.29,446.24866062]
[1741623317401,56.97830863,121.32,121.31,0.06066493]
[1741623317700,271.8,121.33,121.29,446.24866062]
[1741623318796,0.05645926,121.34,121.3,0.06274784]
[1741623319197,0.05645926,121.34,121.3,98.42105647]
[1741623319396,0.05645926,121.34,121.3,102.64535647]
[1741623319597,0.05645926,121.34,121.33,8.2442]
[1741623320202,271.8,121.38,121.31,8.2452]
[1741623320497,56.97830863,121.37,121.28,4.0739]
[1741623320702,8.244,121.34,121.28,4.0739]
[1741623320900,56.97830863,121.35,121.27,41.38]
[1741623321098,56.97830863,121.31,121.24,4.1756]
[1741623321501,0.06117911,121.29,121.26,0.05872683]
[1741623322204,0.06117911,121.29,121.27,62.0]
[1741623322407,8.30847911,121.29,121.27,62.0]
[1741623322705,0.06117911,121.29,121.27,62.0]
[1741623323601,57.03948774,121.29,121.21,4.3857]
[1741623323807,56.97830863,121.25,121.17,4.1857]
[1741623324002,56.97830863,121.23,121.15,3.9811]
[1741623324312,56.97830863,121.21,121.14,4.1588]
[1741623324606,56.97830863,121.21,121.15,62.0]
[1741623324607,41.38,121.2,121.15,62.0]
[1741623325006,0.05610305,121.19,121.16,0.05687679]
[1741623325506,0.05610305,121.19,121.16,0.06000182]
[1741623325995,329.01830863,121.29,121.17,41.38]
[1741623326196,41.38,121.32,121.22,56.97830863]
[1741623326404,1.6486687,121.31,121.22,56.97830863]
[1741623326906,1.6486687,121.31,121.21,41.38]
[1741623327105,0.05336577,121.28,121.25,8.30470531]
[1741623327306,0.05336577,121.28,121.25,0.05500531]
[1741623328910,0.05336577,121.28,121.25,62.05500531]
[1741623329098,8.249,121.26,121.25,0.05500531]
[1741623329305,41.45336577,121.28,121.18,45.3811]
[1741623329505,41.45336577,121.28,121.18,102.35940863]
[1741623329705,8.2491,121.26,121.22,8.2513]
[1741623330007,41.4,121.28,121.18,102.35940863]
[1741623330407,41.4,121.28,121.18,3.9811]
[1741623330408,56.97830863,121.27,121.18,3.9811]
[1741623330608,0.05613523,121.24,121.22,0.05967041]
[1741623330808,41.45613523,121.24,121.14,41.4]
[1741623331013,56.97830863,121.23,121.14,45.6195]
[1741623331205,56.97830863,121.21,121.14,4.2195]
[1741623331411,41.4,121.2,121.14,4.2195]
[1741623332109,0.05807403,121.18,121.16,0.05828889]
[1741623332909,41.4,121.23,121.16,0.05828889]
[1741623333206,98.37830863,121.23,121.16,0.05828889]
[1741623333409,49.6515,121.23,121.18,8.2539]
[1741623333611,41.4,121.23,121.14,102.59780863]
[1741623333810,56.97830863,121.22,121.14,4.2195]
[1741623334003,0.06268986,121.2,121.17,0.062331]
[1741623334201,41.4,121.19,121.13,4.3423]
[1741623334401,41.4,121.19,121.15,8.2559]
[1741623334613,41.4,121.19,121.13,4.3423]
[1741623334906,56.97830863,121.25,121.19,8.2533]
[1741623335114,56.97830863,121.26,121.14,98.37830863]
[1741623335314,0.05648434,121.23,121.21,0.05332123]
[1741623335614,56.97830863,121.22,121.14,41.4]
[1741623335912,56.97830863,121.2,121.14,62.0]
[1741623336108,41.4,121.19,121.14,62.0]
[1741623336315,41.4,121.23,121.14,62.0]
[1741623336612,0.05708152,121.2,121.17,0.05206095]
[1741623337307,272.06,121.27,121.17,0.05206095]
[1741623337509,41.4,121.26,121.18,56.97830863]
[1741623337709,8.2501,121.25,121.21,8.2522]
[1741623337910,41.4,121.26,121.16,56.97830863]
[1741623338110,41.4,121.26,121.17,4.2496]
[1741623338306,41.4,121.26,121.23,8.2506]
[1741623338511,0.05376422,121.23,121.2,0.05647091]
[1741623338705,98.37830863,121.26,121.17,4.2496]
[1741623338914,0.05324836,121.23,121.2,0.05249775]
[1741623339110,41.4,121.22,121.2,0.05249775]
[1741623339307,49.6521,121.22,121.2,0.05249775]
[1741623339507,41.4,121.22,121.2,0.05249775]
[1741623339713,98.37830863,121.22,121.14,4.1156]
[1741623340313,98.37830863,121.22,121.15,62.0]
[1741623340513,8.2555,121.17,121.14,4.1156]
[1741623340807,98.37830863,121.22,121.14,4.1156]
[1741623341013,0.05646529,121.17,121.16,8.2558]
[1741623341315,49.6521,121.22,121.17,0.05299934]
[1741623341520,49.6521,121.22,121.14,45.5156]
[1741623341521,41.4,121.22,121.19,8.2533]
[1741623341913,41.4,121.22,121.14,102.49390863]
[1741623342116,41.4,121.25,121.16,56.97830863]
[1741623342317,0.05290011,121.19,121.17,0.05569248]
[1741623342511,8.2506,121.24,121.2,8.253]
[1741623343313,8.2518,121.22,121.18,41.4]
[1741623343518,41.4,121.25,121.18,41.4]
[1741623343717,0.05395585,121.21,121.19,0.05285545]
[1741623343916,8.2531,121.2,121.19,0.05285545]
[1741623344120,0.05395585,121.21,121.19,0.05285545]
[1741623344515,8.2531,121.2,121.19,0.05285545]
[1741623346613,8.2531,121.2,121.19,5.545e-05]
[1741623347420,280.4931,121.2,121.19,5.545e-05]
[1741623347616,8.2531,121.2,121.19,5.545e-05]
[1741623350020,65.23140863,121.2,121.19,5.545e-05]
[1741623350323,67.71140863,121.2,121.19,5.545e-05]
[1741623350524,56.97830863,121.18,121.13,4.3423]
[1741623351021,41.4,121.17,121.1,97.15483941]
[1741623351220,56.97830863,121.16,121.1,93.19923941]
[1741623351422,56.97830863,121.14,121.1,89.07083941]
[1741623351629,41.4,121.13,121.1,89.07083941]
[1741623352127,8.31376269,121.14,121.1,89.07083941]
[1741623352333,0.05626269,121.14,121.11,8.2591]
[1741623352521,0.05626269,121.14,121.1,89.07083941]
[1741623352917,0.05626269,121.14,121.11,0.05804326]
[1741623353827,8.31356269,121.14,121.11,0.05804326]
[1741623354121,0.05626269,121.14,121.11,0.05804326]
[1741623354425,0.05626269,121.14,121.11,8.31694326]
[1741623354625,0.05626269,121.14,121.11,0.05804326]
[1741623355629,0.05626269,121.14,121.13,8.2579]
[1741623356026,0.05626269,121.14,121.12,16.6396]
[1741623356829,0.05626269,121.14,121.12,8.3816]
[1741623357023,0.05626269,121.14,121.12,70.3816]
[1741623357227,0.05626269,121.14,121.13,8.2579]
[1741623359130,0.05626269,121.14,121.12,78.6398]
[1741623359520,0.05626269,121.14,121.12,70.3816]
[1741623359723,0.05626269,121.14,121.12,78.6398]
[1741623359928,0.05626269,121.14,121.12,70.3816]
[1741623360123,56.97830863,121.2,121.12,70.3816]
[1741623360330,98.37830863,121.19,121.13,4.1767]
[1741623360530,56.97830863,121.17,121.12,8.3816]
[1741623360732,56.97830863,121.15,121.09,4.1767]
[1741623360942,41.4,121.14,121.09,4.1767]
[1741623361232,41.4,121.14,121.1,8.2595]
[1741623361436,0.05286048,121.13,121.1,0.06148771]
[1741623362037,56.97830863,121.11,121.06,4.2536]
[1741623362334,56.97830863,121.09,121.05,141.18351758]
[1741623362528,56.97830863,121.07,121.05,93.40511531]
[1741623362728,41.4,121.06,121.04,120.58301475]
[1741623362924,65.24160863,121.05,121.04,120.58301475]
[1741623363124,65.24160863,121.05,121.03,262.68568306]
[1741623363125,56.97830863,121.05,121.03,5.12519147]
[1741623363325,56.97830863,121.05,121.03,9.147e-05]
[1741623363326,8.264,121.04,121.03,9.147e-05]
[1741623363723,10.744,121.04,121.03,9.147e-05]
[1741623363931,8.2647,121.03,121.02,236.80486465]
[1741623364130,65.24300863,121.03,121.02,223.20656465]
[1741623364431,67.72300863,121.03,121.02,223.20656465]
[1741623364631,56.97830863,121.03,121.02,223.20656465]
[1741623364839,41.38,121.03,121.02,223.20656465]
[1741623365330,100.83830863,121.03,121.02,223.20656465]
[1741623365530,100.83830863,121.03,121.01,334.07677519]
[1741623365531,194.0,121.02,120.94,556.69274636]
[1741623365734,8.2708,120.95,120.89,8.3486]
[1741623365935,56.97830863,120.96,120.89,8.3486]
[1741623366136,41.4,120.96,120.89,65.32690863]
[1741623366532,41.4,120.96,120.89,8.3486]
[1741623366733,0.05978784,120.94,120.91,0.05649889]
[1741623367028,41.4,120.96,120.91,57.03480752]
[1741623367439,41.4,120.96,120.91,0.05649889]
[1741623367832,160.14128388,120.93,120.91,0.05649889]
[1741623368034,133.76848388,120.93,120.92,8.2716]
[1741623368336,133.82188933,120.93,120.91,0.05649889]
[1741623368726,133.82188933,120.93,120.91,62.05649889]
[1741623368923,41.42,120.92,120.91,0.05649889]
[1741623369337,41.42,120.92,120.87,56.97830863]
[1741623369338,113.98012704,120.92,120.87,56.97830863]
[1741623369729,113.98012704,120.92,120.91,8.2729]
[1741623370333,113.98012704,120.92,120.91,8.15028397]
[1741623370530,113.98012704,120.92,120.9,0.06286604]
[1741623371037,163.81885092,120.92,120.9,0.06286604]
[1741623371336,163.81885092,120.92,120.85,98.39830863]
[1741623371531,163.81885092,120.92,120.88,56.97830863]
[1741623371736,163.81885092,120.92,120.91,8.2729]
[1741623372237,4.0507,121.0,120.91,2.48]
[1741623372433,4.0507,121.0,120.93,56.97830863]
[1741623372628,0.06240524,120.97,120.94,0.04808241]
[1741623373938,0.06240524,120.97,120.91,56.97830863]
[1741623374134,0.06240524,120.97,120.94,56.97830863]
[1741623374340,0.06240524,120.97,120.94,98.39830863]
[1741623374542,0.06240524,120.97,120.94,41.42]
[1741623374842,0.06240524,120.97,120.89,98.39830863]
[1741623375039,0.06240524,120.97,120.89,41.42]
[1741623375239,8.2705,120.95,120.87,56.97830863]
[1741623375541,0.05430461,120.94,120.88,62.0]
[1741623376137,0.05430461,120.94,120.89,56.97830863]
[1741623376940,711.58668076,120.9,120.89,56.97830863]
[1741623377136,711.58668076,120.9,120.89,65.25250863]
[1741623377347,711.58668076,120.9,120.89,8.2742]
[1741623377639,691.14828076,120.9,120.89,65.25250863]
[1741623377843,658.42028076,120.9,120.89,65.25250863]
[1741623378138,610.81428076,120.9,120.89,67.73250863]
[1741623378339,596.13698076,120.9,120.89,67.73250863]
[1741623378645,635.78693232,120.9,120.89,8.2742]
[1741623379344,635.78693232,120.9,120.89,62.0]
[1741623379533,635.78693232,120.9,120.86,41.42]
[1741623379738,635.78693232,120.9,120.89,8.2742]
[1741623380045,567.38533232,120.9,120.89,65.25250863]
[1741623380348,481.14933232,120.9,120.89,67.73250863]
[1741623380642,0.06125873,120.91,120.9,8.2736]
[1741623380839,437.01963697,120.96,120.9,98.39830863]
[1741623381041,437.01963697,120.96,120.92,56.97830863]
[1741623381242,437.01963697,120.96,120.93,8.271]
[1741623381843,437.01963697,120.96,120.9,371.17830863]
[1741623382042,437.0790232,120.96,120.93,0.05840096]
[1741623382338,46.87880718,120.96,120.94,98.39830863]
[1741623382539,1.184e-05,120.96,120.95,70.2701]
[1741623382941,1.184e-05,120.96,120.95,129.72840863]
[1741623383249,12.4805,121.06,120.95,129.72840863]
[1741623383250,12.4805,121.06,120.95,64.48]
[1741623383438,14.96067563,121.06,120.98,56.97830863]
[1741623383634,8.2645,121.04,121.0,8.2664]
[1741623383834,8.4671,121.06,121.0,56.97830863]
[1741623384038,8.4671,121.06,120.99,41.42]
[1741623384239,8.2637,121.05,121.01,8.2657]
[1741623384440,0.05307932,121.04,121.01,0.05605208]
[1741623384647,4.1431,121.11,121.02,56.97830863]
[1741623384944,2.48017563,121.11,121.04,56.97830863]
[1741623385244,8.32062339,121.08,121.06,0.06323947]
[1741623385446,0.05932339,121.08,121.06,0.06323947]
[1741623385634,2.53949902,121.08,121.06,0.06323947]
[1741623385944,59.51780765,121.08,120.99,41.42]
[1741623386145,59.45848426,121.08,120.99,41.42]
[1741623386341,8.2648,121.03,120.99,41.42]
[1741623386550,41.4,121.07,121.0,62.0]
[1741623386733,43.88017563,121.07,121.0,62.0]
[1741623386938,0.06056303,121.05,121.02,8.768e-05]
[1741623387140,56.97830863,121.04,121.02,8.768e-05]
[1741623387340,49.6647,121.03,121.02,8.768e-05]
[1741623387741,41.4,121.03,120.93,41.4]
[1741623388042,56.97830863,121.02,120.93,41.4]
[1741623388541,59.45839658,121.02,120.94,8.2704]
[1741623388747,59.45839658,121.02,120.92,272.7]
[1741623388946,8.2702,120.95,120.92,322.3716]
[1741623389142,41.46242997,120.99,120.9,41.4]
[1741623389347,41.46242997,120.99,120.88,56.97830863]
[1741623389348,43.88008795,120.99,120.88,56.97830863]
[1741623389549,0.05866724,120.96,120.89,41.4]
[1741623389942,2.53875519,120.96,120.89,41.4]
[1741623390143,2.53875519,120.96,120.9,62.0]
[1741623391141,59.51706382,120.96,120.87,314.1]
[1741623391459,8.271,120.94,120.87,314.1]
[1741623391746,0.05323322,120.93,120.82,272.7]
[1741623391947,8.2743,120.89,120.85,8.2765]
[1741623392147,2.48008795,120.93,120.83,41.4]
[1741623392353,0.06352995,120.88,120.83,98.37830863]
[1741623393050,0.06352995,120.88,120.85,56.97830863]
[1741623393251,2.995e-05,120.88,120.87,56.97830863]
[1741623393550,8.7439,120.98,120.87,98.37830863]
[1741623393747,11.22398795,120.98,120.88,56.97830863]
[1741623393948,6.83608795,120.98,120.9,56.97830863]
[1741623394147,8.5729,121.01,120.92,56.97830863]
[1741623394349,6.67938795,121.01,120.92,56.97830863]
[1741623394547,0.05838842,120.98,120.97,8.2684]
[1741623394748,8.842e-05,120.98,120.97,8.2684]
[1741623395156,8.842e-05,120.98,120.97,10.7484]
[1741623396350,3.9815,121.08,121.05,8.2633]
[1741623396554,6.46158795,121.08,121.05,8.2633]
[1741623396754,6.46158795,121.08,121.01,41.4]
[1741623396949,6.46158795,121.08,121.01,49.6659]
[1741623397151,6.46158795,121.08,121.01,41.4]
[1741623397552,0.06264015,121.06,121.03,0.05348934]
[1741623397956,2.5427281,121.06,121.04,62.0]
[1741623398258,0.06264015,121.06,121.04,62.0]
[1741623399057,2.5427281,121.06,121.04,62.0]
[1741623399359,2.5427281,121.06,121.03,0.05348934]
[1741623399561,0.06264015,121.06,121.04,8.264]
[1741623399758,0.06264015,121.06,121.03,0.05348934]
[1741623399960,2.5427281,121.06,121.03,0.05348934]
[1741623400650,0.06264015,121.06,121.03,0.05348934]
[1741623401459,2.5427281,121.06,121.03,0.05348934]
[1741623401863,0.06264015,121.06,121.03,0.05348934]
[1741623402378,0.06264015,121.06,121.04,70.2635]
[1741623402581,0.06264015,121.06,121.04,62.0]
[1741623402978,4.015e-05,121.06,121.05,49.6433]
[1741623403176,4.015e-05,121.06,121.05,41.38]
[1741623403375,4.015e-05,121.06,121.05,8.2633]
[1741623403574,4.015e-05,121.06,121.04,62.0]
[1741623403875,4.015e-05,121.06,121.05,8.2633]
[1741623405780,4.015e-05,121.06,121.05,10.7433]
[1741623405980,4.015e-05,121.06,121.05,8.2633]
[1741623406382,4.015e-05,121.06,121.05,10.7433]
[1741623406881,4.015e-05,121.06,121.05,8.2633]
[1741623407282,4.015e-05,121.06,121.05,10.7433]
[1741623407475,4.015e-05,121.06,121.04,62.0]